bitfinex/quotes_ETHUSD_20251221
["timestamp","ask_amount","ask_price","bid_price","bid_amount"]
[1766358129514,1.13928652,3014.8,3013.3,0.2115]
[1766358129688,1.08928652,3014.8,3013.3,0.2115]
[1766358129884,3.31718967,3014.6,3013.3,0.2115]
[1766358130085,1.0822,3014.5,3013.3,0.2115]
[1766358130288,1.4426,3014.1,3012.3,0.2115]
[1766358130506,1.0822,3013.6,3012.3,0.6425]
[1766358130714,0.02343214,3014.3,3012.4,0.2115]
[1766358131028,3.72520204,3015.1,3013.1,0.2115]
[1766358131029,6.63349916,3015.0,3013.1,0.2115]
[1766358131313,0.66364992,3014.9,3013.3,0.2115]
[1766358131498,0.66364992,3014.9,3013.4,0.2446851]
[1766358131821,0.66364992,3014.9,3013.6,0.2115]
[1766358131822,3.98053402,3014.9,3013.6,0.2115]
[1766358131987,7.29741812,3014.9,3013.6,0.2115]
[1766358132177,7.29741812,3014.9,3013.0,0.2115]
[1766358132375,1.4426,3014.7,3012.9,0.21962275]
[1766358132612,0.72974181,3014.8,3013.4,3.31845026]
[1766358132788,0.72974181,3014.8,3013.5,0.2115]
[1766358133108,3.31685477,3015.0,3013.5,0.2115]
[1766358133287,7.06770954,3015.0,3013.5,0.2115]
[1766358133620,1.0822,3014.9,3013.7,0.2115]
[1766358133813,0.434,3015.6,3013.9,0.2085]
[1766358134126,3.3157598,3015.9,3014.2,0.02343214]
[1766358134302,1.4426,3015.5,3014.3,0.2085]
[1766358134481,1.4426,3015.5,3013.7,3.31813416]
[1766358134482,1.0822,3015.3,3013.8,0.2085]
[1766358134808,1.0822,3014.9,3013.8,0.2085]
[1766358135011,0.3604,3014.8,3013.1,0.05662055]
[1766358135230,0.3604,3013.9,3012.1,0.2085]
[1766358135436,0.3604,3013.3,3012.1,0.2085]
[1766358135589,1.4426,3013.0,3011.8,0.431]
[1766358135927,1.4426,3013.0,3011.2,0.2085]
[1766358135928,1.0822,3012.6,3011.2,0.2085]
[1766358136127,1.0822,3012.4,3011.2,0.2085]
[1766358136493,1.0822,3012.4,3011.6,0.02343214]
[1766358136722,0.3604,3012.6,3011.6,0.02343214]
[1766358137026,0.3604,3012.2,3011.2,0.02343214]
[1766358137226,0.3604,3012.2,3011.1,0.43]
[1766358137227,0.3604,3011.6,3010.4,0.02343214]
[1766358137429,1.0822,3011.2,3009.7,0.23193214]
[1766358137630,0.3604,3010.5,3009.1,0.02343214]
[1766358137814,3.3220384,3010.2,3009.1,0.02343214]
[1766358138329,3.84180224,3010.2,3009.0,0.6385]
[1766358138529,0.3604,3010.0,3008.7,0.02343214]
[1766358138714,0.3604,3009.4,3008.5,0.02343214]
[1766358139025,1.0822,3009.0,3007.9,0.02343214]
[1766358139226,0.433,3009.4,3007.9,0.23193214]
[1766358139227,1.5152,3009.2,3007.9,0.23193214]
[1766358139428,3.84180224,3010.2,3008.4,0.2085]
[1766358139593,0.51976384,3010.2,3008.9,0.02343214]
[1766358139794,1.8756,3010.3,3009.0,3.53175344]
[1766358140246,5.10756466,3011.4,3009.0,3.53175344]
[1766358140247,1.0822,3011.5,3009.7,0.2085]
[1766358140544,0.433,3011.4,3009.9,0.2085]
[1766358141137,0.3604,3011.0,3009.7,0.43]
[1766358141459,0.433,3011.4,3008.7,0.02343214]
[1766358141460,0.3604,3010.3,3008.9,0.45343214]
[1766358141650,1.0822,3010.2,3008.9,3.77688365]
[1766358141938,1.0822,3010.2,3008.9,3.7768777]
[1766358142143,1.0822,3010.2,3009.0,3.32333857]
[1766358142347,1.0822,3010.2,3008.9,0.45343214]
[1766358142726,4.40425963,3010.2,3008.9,3.77689881]
[1766358143045,4.40426635,3010.2,3008.9,3.77689881]
[1766358143365,0.433,3010.3,3009.2,0.2085]
[1766358143651,1.5152,3010.7,3009.4,0.2085]
[1766358143814,2.12169084,3011.3,3009.5,6.66905432]
[1766358144020,1.5152,3011.3,3009.6,0.2085]
[1766358144254,1.5152,3011.3,3009.8,0.2085]
[1766358144436,4.83605505,3011.3,3009.8,0.2085]
[1766358144636,1.0822,3011.2,3009.8,0.2085]
[1766358145040,1.0822,3010.6,3009.3,0.35551832]
[1766358145349,1.0822,3010.6,3009.0,0.2085]
[1766358145350,1.0822,3010.3,3009.0,0.2085]
[1766358145550,1.0822,3010.3,3009.0,3.53180113]
[1766358145743,1.0822,3010.3,3009.0,0.2085]
[1766358146051,1.0822,3011.0,3009.2,0.2085]
[1766358146251,1.5152,3011.0,3009.2,0.2085]
[1766358146552,0.3604,3011.4,3009.9,0.2085]
[1766358146718,0.3604,3011.4,3010.1,0.2085]
[1766358147138,1.4426,3011.4,3010.1,0.2085]
[1766358147620,1.91892149,3011.4,3010.1,0.2085]
[1766358147841,5.2396691,3011.4,3010.1,0.2085]
[1766358148240,0.3604,3011.2,3010.0,0.43]
[1766358148539,1.0822,3010.6,3010.0,0.43]
[1766358148722,1.0822,3010.6,3009.1,0.2085]
[1766358148723,1.4426,3010.6,3009.1,0.2085]
[1766358148926,1.0822,3010.5,3009.2,3.75313542]
[1766358149159,1.0822,3010.2,3009.3,0.39616354]
[1766358149343,5.53538242,3011.0,3009.2,0.43]
[1766358149344,1.0822,3010.0,3009.2,0.43]
[1766358149538,1.0822,3010.0,3009.0,0.001]
[1766358149740,0.2,3011.3,3009.0,0.2095]
[1766358150057,1.0822,3010.7,3009.2,0.2085]
[1766358150281,1.0822,3010.5,3009.3,3.32298701]
[1766358150555,0.3604,3010.6,3009.0,0.001]
[1766358150556,1.0822,3010.2,3009.0,0.001]
[1766358150857,7.07619664,3010.6,3009.0,0.001]
[1766358150858,1.0822,3009.6,3009.0,0.001]
[1766358151060,0.433,3010.1,3008.3,0.2085]
[1766358151061,1.0822,3009.4,3008.3,0.2085]
[1766358151350,0.3604,3009.4,3008.2,3.32421481]
[1766358151560,5.10238242,3010.3,3008.2,3.32421481]
[1766358151561,1.0822,3010.2,3008.8,0.2085]
[1766358151778,0.3604,3009.9,3008.5,3.3238907]
[1766358151954,1.0822,3009.6,3008.4,0.02343214]
[1766358152154,1.4426,3009.6,3008.8,3.32358159]
[1766358152328,1.4426,3009.6,3008.9,0.33235816]
[1766358152524,1.4426,3009.6,3008.5,3.3239111]
[1766358152954,0.3604,3009.6,3008.5,3.3239111]
[1766358153145,1.2703,3011.0,3009.0,0.2085]
[1766358153366,1.2703,3010.4,3009.1,0.429]
[1766358153691,3.54401519,3011.6,3009.1,0.429]
[1766358153692,1.6318,3011.8,3009.7,5.12581456]
[1766358153988,1.2703,3012.4,3010.7,0.2085]
[1766358154211,9.95718408,3012.9,3010.6,0.02343214]
[1766358154212,1.2703,3012.2,3010.9,3.32126606]
[1766358154360,7.07244984,3012.3,3010.8,3.98228576]
[1766358154557,1.6318,3012.1,3010.9,0.39822858]
[1766358154786,0.3615,3011.5,3010.4,0.02343214]
[1766358155061,0.355,3011.0,3010.2,0.429]
[1766358155309,1.1735,3010.9,3010.2,0.429]
[1766358155465,0.355,3011.7,3010.2,0.429]
[1766358155667,0.355,3011.6,3010.2,0.429]
[1766358155867,1.1735,3011.5,3010.3,3.32182447]
[1766358156077,1.1735,3011.5,3010.4,0.37508245]
[1766358156607,1.1735,3011.4,3010.4,0.37508245]
[1766358156773,1.1735,3011.4,3010.2,0.429]
[1766358157160,1.1735,3011.3,3010.2,0.429]
[1766358157362,6.64121518,3011.5,3009.0,0.02443214]
[1766358157363,1.1735,3010.7,3009.0,0.02443214]
[1766358157562,9.96182277,3011.5,3009.0,0.02443214]
[1766358157563,1.1735,3010.3,3009.1,3.32325279]
[1766358157806,1.1735,3010.3,3009.2,0.2085]
[1766358157992,1.1735,3010.3,3009.3,0.35317528]
[1766358158394,1.1735,3010.8,3009.4,6.85434302]
[1766358158576,1.1735,3010.8,3009.5,0.2085]
[1766358158764,1.1735,3010.8,3009.6,0.429]
[1766358160002,1.1735,3010.8,3009.6,0.6375]
[1766358160505,3.32093057,3011.3,3009.8,0.2085]
[1766358160506,1.1735,3011.3,3009.8,0.2085]
[1766358160690,0.355,3011.4,3010.0,0.2085]
[1766358160896,1.1735,3011.6,3010.0,0.2085]
[1766358161065,3.31906136,3012.9,3010.5,0.2085]
[1766358161366,0.355,3012.3,3010.7,0.2085]
[1766358161579,3.31906136,3012.9,3010.7,0.2085]
[1766358161580,1.1735,3012.1,3010.7,0.2085]
[1766358161909,0.355,3012.6,3010.9,0.2085]
[1766358162212,0.355,3012.6,3011.1,0.2085]
[1766358162213,1.5285,3012.6,3011.1,0.2085]
[1766358162382,1.5285,3012.6,3011.2,6.64187034]
[1766358162583,1.1735,3013.1,3011.4,0.2085]
[1766358162822,1.1735,3013.0,3011.4,0.2085]
[1766358163107,1.1735,3012.9,3011.4,0.2085]
[1766358163270,1.1735,3012.8,3011.4,0.2085]
[1766358163472,1.1735,3012.8,3011.3,0.429]
[1766358163473,1.1735,3012.4,3011.3,0.429]
[1766358163694,1.5285,3012.0,3011.0,3.32107001]
[1766358163879,1.1735,3012.0,3011.0,0.66424108]
[1766358164082,1.1735,3012.0,3011.1,3.32100956]
[1766358164308,1.1735,3012.0,3011.0,3.32111525]
[1766358164492,0.432,3012.3,3011.0,3.32111525]
[1766358164493,1.6055,3012.3,3011.0,3.32111525]
[1766358164680,1.1735,3012.2,3011.0,3.32111525]
[1766358165078,3.75172941,3012.3,3010.7,0.02343214]
[1766358165079,0.355,3012.0,3010.7,0.02343214]
[1766358165278,1.1735,3011.8,3010.7,0.02343214]
[1766358165590,1.1735,3011.8,3010.9,3.32121036]
[1766358165775,1.1735,3011.8,3010.7,3.93317001]
[1766358165776,1.1735,3011.7,3010.7,0.40318887]
[1766358166160,1.1735,3011.5,3010.5,0.429]
[1766358166404,0.355,3011.0,3010.0,0.429]
[1766358166610,0.432,3011.4,3010.0,0.6375]
[1766358166807,0.355,3011.2,3010.0,0.429]
[1766358167011,0.62805,3011.4,3010.0,0.429]
[1766358167012,1.1735,3010.9,3010.0,0.429]
[1766358167216,0.355,3010.6,3010.0,0.429]
[1766358167380,1.5285,3010.6,3009.5,0.45243214]
[1766358167585,1.5285,3010.6,3009.6,0.37753484]
[1766358167783,1.1735,3010.1,3008.8,0.02343214]
[1766358168114,5.10238242,3010.9,3009.0,0.001]
[1766358168115,1.1735,3009.8,3009.0,0.001]
[1766358168313,0.432,3010.3,3009.0,3.53280325]
[1766358168516,1.1735,3010.5,3009.1,11.27040814]
[1766358168683,1.1735,3011.2,3009.6,0.2085]
[1766358168882,1.1735,3011.2,3009.9,0.02343214]
[1766358169115,1.1735,3011.2,3009.9,0.23193214]
[1766358169313,1.1735,3010.8,3009.7,0.429]
[1766358169520,0.355,3010.1,3009.1,0.02343214]
[1766358169822,0.355,3010.1,3009.2,0.429]
[1766358169823,1.5285,3010.1,3009.2,0.429]
[1766358170017,1.1735,3010.1,3009.2,0.429]
[1766358170336,0.355,3011.2,3009.3,0.23193214]
[1766358170495,1.9605,3011.1,3009.6,0.2085]
[1766358170811,1.72455,3011.1,3009.7,0.68775543]
[1766358171016,1.1735,3011.7,3010.2,0.2085]
[1766358171179,3.31983268,3012.2,3010.3,0.02343214]
[1766358171180,0.355,3011.5,3010.3,0.02343214]
[1766358171382,1.1735,3011.3,3010.3,0.02343214]
[1766358171582,1.1735,3011.3,3010.1,0.02343214]
[1766358171990,0.002,3011.2,3010.1,0.02343214]
[1766358172193,0.002,3011.2,3009.9,0.2085]
[1766358172194,1.1735,3011.1,3009.9,0.2085]
[1766358172421,0.355,3010.6,3009.7,0.68775543]
[1766358172590,0.355,3010.1,3009.0,0.43]
[1766358172791,1.1735,3010.0,3009.1,0.37768727]
[1766358173205,1.1735,3010.4,3009.1,0.37768727]
[1766358173718,0.355,3010.0,3009.1,0.37768727]
[1766358173918,1.1735,3009.9,3009.0,0.43]
[1766358174085,1.1735,3009.8,3009.0,0.43]
[1766358174490,1.1735,3009.8,3009.1,3.32325279]
[1766358174721,1.1735,3009.8,3009.0,0.43]
[1766358174722,1.1735,3009.7,3009.0,3.3243399]
[1766358174918,0.355,3009.7,3009.0,0.001]
[1766358175118,3.32121602,3011.0,3009.0,0.001]
[1766358175417,3.32121602,3011.0,3009.1,0.2085]
[1766358175418,1.1735,3010.4,3009.1,0.2085]
[1766358175624,0.355,3010.1,3009.0,0.001]
[1766358175820,0.355,3009.6,3009.0,0.001]
[1766358176124,1.1735,3009.9,3009.0,0.001]
[1766358176318,1.6055,3009.9,3009.0,0.001]
[1766358176617,0.432,3009.9,3009.0,0.001]
[1766358176934,1.1735,3009.8,3009.0,0.001]
[1766358177093,1.1735,3009.4,3008.7,0.429]
[1766358177293,1.1735,3008.9,3007.9,3.32456681]
[1766358177525,0.355,3009.0,3007.7,3.32569174]
[1766358177526,1.1735,3008.6,3008.0,0.3348999]
[1766358177691,1.1735,3008.6,3007.8,0.001]
[1766358178397,1.1735,3008.4,3007.8,0.001]
[1766358178598,5.10238242,3009.6,3007.7,0.001]
[1766358178599,1.1735,3008.1,3007.7,0.001]
[1766358178799,6.64584302,3009.4,3007.7,0.001]
[1766358179019,1.5285,3009.2,3007.7,0.001]
[1766358179219,1.1735,3008.9,3007.1,0.428]
[1766358179427,1.1735,3008.3,3006.6,0.45143214]
[1766358179623,0.355,3007.9,3006.6,3.77744203]
[1766358179792,0.19595,3009.1,3006.9,0.2095]
[1766358179998,1.5285,3008.9,3007.1,3.32545649]
[1766358180224,0.431,3009.0,3006.8,0.02343214]
[1766358180519,1.1735,3008.7,3006.9,3.32559088]
[1766358180729,1.1735,3008.7,3007.0,0.03325573]
[1766358180730,1.1735,3008.2,3007.0,0.03325573]
[1766358181025,0.355,3009.1,3007.0,0.2095]
[1766358181229,1.1735,3008.8,3007.0,0.2095]
[1766358181410,1.1735,3008.2,3006.6,3.7774257]
[1766358181608,5.10238242,3008.8,3006.6,3.7774257]
[1766358181609,1.1735,3007.8,3006.7,0.37784257]
[1766358181815,1.5285,3007.8,3006.9,0.001]
[1766358182014,0.355,3007.2,3006.0,0.001]
[1766358182223,1.1735,3007.0,3006.0,0.001]
[1766358182400,0.02343214,3008.5,3006.0,0.001]
[1766358182401,1.1735,3008.0,3006.6,3.53550964]
[1766358182602,1.1735,3008.0,3006.7,3.88895359]
[1766358182801,3.32441637,3008.1,3006.7,3.32580263]
[1766358183001,6.64883274,3008.1,3006.5,0.429]
[1766358183234,1.1735,3007.8,3006.7,6.65179742]
[1766358183400,1.1735,3007.8,3006.7,3.32589195]
[1766358183601,1.1735,3007.8,3006.8,0.3535392]
[1766358185113,0.3464,3007.3,3006.5,0.429]
[1766358185310,1.3733,3007.1,3006.5,0.001]
[1766358185532,0.431,3007.3,3006.5,0.001]
[1766358185708,0.431,3007.3,3006.0,0.001]
[1766358185709,0.3464,3006.9,3006.0,0.001]
[1766358185908,1.3733,3006.8,3006.0,0.001]
[1766358186108,1.3733,3006.8,3006.0,3.3276592]
[1766358186429,1.3733,3006.8,3006.1,0.33276592]
[1766358187027,1.3733,3006.8,3006.0,3.32767218]
[1766358187225,1.3733,3006.8,3006.0,3.32764985]
[1766358187533,5.10238242,3007.9,3006.0,0.001]
[1766358187534,0.3464,3006.7,3006.0,0.001]
[1766358187737,3.75666436,3007.0,3005.7,3.32791069]
[1766358187738,1.7197,3006.2,3005.7,0.001]
[1766358187902,1.7197,3006.2,3005.6,0.001]
[1766358187903,1.7197,3006.1,3005.6,0.001]
[1766358188108,0.431,3006.4,3004.9,0.428]
[1766358188109,0.3464,3006.0,3004.9,0.428]
[1766358188445,0.431,3006.2,3005.5,3.32722071]
[1766358188606,1.3733,3006.4,3005.6,0.33272207]
[1766358188800,1.7197,3006.4,3005.6,0.33272207]
[1766358189313,1.3733,3006.1,3004.7,0.001]
[1766358189646,0.3464,3005.6,3004.7,0.001]
[1766358189817,1.3733,3006.2,3004.8,3.32800851]
[1766358190151,1.3733,3006.9,3004.9,0.2105]
[1766358190434,0.431,3007.1,3005.3,0.2105]
[1766358190630,1.8043,3007.1,3005.5,0.2105]
[1766358190801,2.1507,3007.1,3005.7,6.65402402]
[1766358191001,0.7774,3007.1,3005.7,6.65402402]
[1766358191220,1.7197,3007.0,3005.7,3.32701201]
[1766358191430,1.7197,3007.0,3005.8,0.3965512]
[1766358191635,1.3733,3006.7,3005.8,0.3965512]
[1766358191844,1.3733,3006.6,3005.8,0.3965512]
[1766358192050,0.431,3006.8,3005.8,0.3965512]
[1766358192912,3.32491605,3007.6,3005.8,0.3965512]
[1766358192913,0.3464,3008.0,3006.0,0.2105]
[1766358193130,1.3733,3007.7,3006.2,0.2105]
[1766358193316,1.3733,3007.7,3006.1,1.02241398]
[1766358193317,0.3464,3007.8,3006.4,0.2105]
[1766358193637,1.3733,3008.1,3006.6,0.2105]
[1766358193840,0.3464,3007.7,3006.3,0.428]
[1766358194135,3.3242621,3008.2,3006.3,0.428]
[1766358194136,1.3733,3007.4,3006.3,0.428]
[1766358194644,3.3242621,3008.2,3006.6,0.2105]
[1766358194645,0.431,3008.2,3006.6,0.2105]
[1766358194949,0.3464,3007.7,3006.8,3.32579486]
[1766358195154,1.3733,3007.6,3006.8,3.32579486]
[1766358195470,1.3733,3008.0,3006.9,0.67175684]
[1766358195670,0.7774,3008.2,3007.0,1.27541414]
[1766358195671,0.3464,3008.2,3007.0,1.27541414]
[1766358195844,2.1507,3008.9,3007.1,0.2105]
[1766358196041,1.7197,3008.9,3007.1,0.2105]
[1766358196272,2.1507,3008.9,3007.3,0.2105]
[1766358196483,1.7197,3008.9,3007.3,0.2105]
[1766358196786,1.7197,3008.9,3007.0,7.22916481]
[1766358196787,1.7197,3008.9,3007.5,0.2105]
[1766358196941,1.3733,3008.9,3007.7,9.97439904]
[1766358197141,1.3733,3009.2,3007.8,1.2079399]
[1766358197373,1.3733,3008.8,3007.8,0.9974399]
[1766358198034,1.8043,3009.5,3008.0,0.2105]
[1766358198372,1.7197,3009.4,3008.0,0.2105]
[1766358198530,1.7197,3009.2,3008.0,0.2105]
[1766358198926,3.32325279,3009.1,3008.0,0.2105]
[1766358199131,1.3733,3008.8,3008.0,3.32443324]
[1766358199331,1.3733,3008.8,3007.9,3.75255759]
[1766358199554,1.3733,3008.7,3008.0,0.37525576]
[1766358199751,0.3464,3008.8,3008.0,7.02417649]
[1766358199955,0.3464,3009.2,3008.0,3.69970841]
[1766358200171,1.7197,3009.2,3008.0,3.69970841]
[1766358200535,0.3464,3009.2,3008.0,3.69970841]
[1766358200733,1.3733,3008.9,3008.1,0.41277084]
[1766358200963,1.3733,3008.9,3007.9,0.428]
[1766358201169,1.3733,3008.7,3007.9,0.428]
[1766358201478,1.7197,3008.5,3007.6,3.32489592]
[1766358201769,1.7197,3008.5,3007.5,0.428]
[1766358201930,1.7197,3008.5,3007.9,3.32456255]
[1766358202434,1.3733,3008.4,3007.5,0.428]
[1766358202633,1.7197,3008.3,3007.5,0.428]
[1766358202862,1.7197,3008.3,3005.3,1.66915509]
[1766358202863,0.431,3008.2,3007.2,3.32533845]
[1766358203177,0.431,3008.2,3007.1,6.65092614]
[1766358203356,1.3733,3008.1,3007.1,3.32546307]
[1766358203533,1.3733,3008.0,3007.1,3.32546307]
[1766358203735,1.3733,3007.8,3007.0,3.75355922]
[1766358204040,1.3733,3007.8,3007.0,7.4544888]
[1766358204360,0.431,3008.3,3007.1,0.2105]
[1766358204671,0.3464,3008.2,3007.0,7.4544888]
[1766358204872,0.431,3008.3,3007.0,4.12891514]
[1766358205073,0.3464,3008.1,3007.1,0.41289151]
[1766358205367,0.02343214,3009.1,3007.0,3.75355922]
[1766358205368,0.3464,3007.7,3007.0,0.428]
[1766358205774,0.3464,3007.7,3007.0,3.75353731]
[1766358205971,1.3733,3007.4,3006.5,3.7541173]
[1766358206181,1.3733,3007.4,3006.7,3.32587114]
[1766358206336,1.3733,3007.4,3006.8,3.65835195]
[1766358206707,0.3585,3008.1,3006.5,0.6385]
[1766358206887,1.3164,3008.0,3007.1,3.32542149]
[1766358207233,1.3164,3008.0,3006.8,6.86208972]
[1766358207460,1.3164,3008.0,3006.9,0.2105]
[1766358207659,0.3585,3008.1,3007.0,1.11420897]
[1766358207975,1.3164,3008.6,3007.2,0.2085]
[1766358208269,1.3164,3008.4,3007.0,1.11420897]
[1766358208470,1.3164,3008.0,3007.0,1.11420897]
[1766358208769,1.3164,3008.4,3007.1,0.2085]
[1766358209354,1.3164,3008.4,3007.2,6.65070496]
[1766358209559,1.3164,3008.4,3007.3,0.6859205]
[1766358209865,0.43,3008.7,3007.4,0.2085]
[1766358210063,0.43,3008.7,3007.5,0.428]
[1766358210270,0.43,3008.7,3007.5,0.6365]
[1766358210457,1.6749,3009.2,3007.5,0.6365]
[1766358210656,1.26231323,3009.1,3007.5,0.6365]
[1766358210858,1.3164,3009.0,3007.5,0.6365]
[1766358211166,1.6749,3008.7,3007.5,0.6365]
[1766358211585,1.3164,3009.1,3007.7,0.2085]
[1766358211739,0.43,3009.0,3007.8,1.22682307]
[1766358211935,1.3164,3009.1,3007.9,0.2085]
[1766358212188,0.002,3009.3,3008.1,0.2085]
[1766358212353,0.002,3009.3,3008.2,0.2085]
[1766358212535,1.6769,3009.3,3008.2,0.2085]
[1766358212896,1.3164,3009.2,3008.1,0.2085]
[1766358213477,0.002,3009.3,3008.2,6.8569941]
[1766358213676,0.002,3009.3,3008.3,1.01813408]
[1766358214342,1.3184,3009.3,3008.3,1.01813408]
[1766358214549,0.002,3009.3,3008.3,1.01813408]
[1766358214749,0.002,3009.3,3008.4,0.2085]
[1766358214951,1e-08,3009.4,3008.5,0.66973915]
[1766358215183,1e-08,3009.4,3008.6,0.2085]
[1766358215530,1e-08,3009.4,3008.5,0.428]
[1766358215531,1.329,3009.3,3008.5,0.428]
[1766358215774,1.6814,3009.3,3008.1,0.428]
[1766358216346,1.6814,3009.3,3008.4,3.32398654]
[1766358216647,1.6814,3009.3,3008.5,3.32391438]
[1766358216855,1.331,3009.3,3008.5,6.64782995]
[1766358217055,0.002,3009.3,3008.5,6.64782995]
[1766358217780,0.002,3009.3,3008.4,6.64805212]
[1766358217980,0.002,3009.3,3008.4,3.32402606]
[1766358218284,1.329,3009.1,3008.3,3.32410402]
[1766358218663,0.002,3009.3,3008.3,3.53260402]
[1766358218860,0.002,3009.3,3008.4,0.2085]
[1766358219186,0.002,3009.3,3008.5,0.68567406]
[1766358219403,1e-08,3009.4,3008.6,0.6365]
[1766358219684,1e-08,3009.4,3008.6,0.428]
[1766358219847,1.68140001,3009.4,3008.6,3.75179695]
[1766358220561,1.68140001,3009.4,3008.6,0.428]
[1766358220882,1.68140001,3009.4,3008.7,0.44375531]
[1766358221060,1.68140001,3009.4,3008.6,0.428]
[1766358221061,1.329,3009.3,3008.6,0.428]
[1766358221385,0.3524,3008.9,3008.0,3.3244564]
[1766358221683,1.329,3009.0,3008.2,3.3241612]
[1766358221884,1.329,3009.0,3008.1,3.32435756]
[1766358223484,1.6814,3009.0,3008.1,6.64871512]
[1766358223786,1.6814,3009.0,3008.2,0.70767151]
[1766358224086,1.329,3008.9,3008.3,3.32413655]
[1766358224378,1.329,3008.9,3008.2,4.03188108]
[1766358224583,1.329,3008.9,3008.2,0.70767151]
[1766358224984,1.329,3008.9,3008.0,0.428]
[1766358225482,1.6814,3008.9,3008.1,3.32434914]
[1766358225683,0.002,3009.0,3008.0,3.75244695]
[1766358225684,1.329,3008.7,3008.0,3.75244695]
[1766358225858,1.329,3008.7,3008.0,0.428]
[1766358226057,1.329,3008.7,3007.5,0.23193214]
[1766358226058,1.329,3008.5,3007.7,0.428]
[1766358226554,1.329,3008.5,3007.7,3.75269897]
[1766358226758,1.329,3008.5,3007.7,4.14881887]
[1766358226954,1.329,3008.5,3007.7,0.8241199]
[1766358227585,1.329,3008.5,3007.7,4.14888627]
[1766358227787,1.329,3008.5,3007.7,0.8241199]
[1766358227955,0.002,3009.0,3007.9,0.2085]
[1766358228458,1.331,3009.0,3007.9,0.2085]
[1766358228655,1.6834,3009.0,3007.9,0.2085]
[1766358229255,0.3544,3009.0,3007.9,0.2085]
[1766358229687,0.002,3009.0,3007.9,0.2085]
[1766358229893,1.329,3008.8,3008.0,1.01825674]
[1766358230092,1.329,3008.7,3008.0,3.75246379]
[1766358230271,0.7844,3009.0,3008.0,7.07693187]
[1766358230471,0.7844,3009.0,3008.0,7.28543187]
[1766358230668,1.6834,3009.0,3008.0,3.96096379]
[1766358230870,1.329,3008.9,3008.0,4.48101642]
[1766358231080,1.329,3008.8,3008.0,4.48101642]
[1766358231280,1.329,3008.7,3008.0,0.428]
[1766358231495,0.002,3009.0,3008.0,7.07689148]
[1766358231496,0.43,3008.8,3008.0,7.07689148]
[1766358231696,0.43,3008.8,3008.0,3.9609234]
[1766358231890,0.43,3008.8,3008.0,4.68957116]
[1766358232194,1.761,3009.0,3008.0,8.01403924]
[1766358232856,1.761,3009.0,3008.0,7.80553924]
[1766358233060,1.761,3009.0,3008.1,0.2085]
[1766358233061,0.002,3009.0,3008.1,0.2085]
[1766358233966,0.002,3009.0,3008.2,3.32424705]
[1766358234197,0.002,3009.0,3008.3,0.3532747]
[1766358236196,1.6814,3008.9,3008.0,1.15664776]
[1766358236492,1.329,3008.8,3008.0,3.75239682]
[1766358236815,0.002,3009.0,3008.0,0.428]
[1766358236816,1.329,3008.7,3008.0,0.428]
[1766358237096,1.329,3008.3,3007.9,0.001]
[1766358237964,1.329,3008.2,3007.9,0.001]
[1766358238167,0.3524,3008.3,3007.9,0.001]
[1766358240274,1.84954,3008.3,3007.9,0.001]
[1766358240478,1.329,3007.9,3007.0,3.32550001]
[1766358240679,1.329,3007.5,3006.8,0.428]
[1766358240882,1.6814,3007.5,3006.8,0.428]
[1766358241096,0.3524,3007.4,3006.6,0.001]
[1766358241289,1.6814,3007.4,3006.6,0.001]
[1766358241695,1.329,3007.3,3006.6,0.001]
[1766358241909,0.3524,3007.6,3006.6,0.001]
[1766358242107,1.759,3007.5,3006.6,0.001]
[1766358242304,1.329,3007.4,3006.6,3.32701609]
[1766358242522,1.6814,3007.4,3006.6,3.32701609]
[1766358242816,0.43,3007.5,3006.6,0.001]
[1766358242817,1.6814,3007.0,3006.6,0.001]
[1766358243515,1.329,3006.9,3006.2,0.428]
[1766358243719,1.6814,3006.9,3006.2,0.428]
[1766358243889,1.6814,3006.9,3006.2,3.75444762]
[1766358244627,1.6814,3006.8,3006.2,0.428]
[1766358244919,0.16814,3006.9,3005.9,0.428]
[1766358245109,0.16814,3006.9,3005.9,3.75478795]
[1766358245110,1.6747,3006.9,3005.9,3.75478795]
[1766358245310,1.6747,3006.9,3006.2,3.32644821]
[1766358245510,1.6747,3006.9,3005.9,0.6365]
[1766358245707,1.6747,3006.9,3006.0,3.3266475]
[1766358245909,0.51317,3006.9,3006.0,3.3266475]
[1766358246110,0.3457,3006.3,3005.5,0.001]
[1766358246324,0.3457,3006.3,3005.5,3.3282199]
[1766358246325,1.7562,3006.3,3005.5,3.3282199]
[1766358246820,1.7562,3006.3,3005.5,6.6554533]
[1766358247021,1.7562,3006.3,3005.5,0.001]
[1766358247218,1.7562,3006.2,3005.5,0.001]
[1766358248219,0.3457,3006.1,3005.5,0.001]
[1766358248448,1.4105,3006.2,3004.7,0.001]
[1766358248449,1.4105,3005.7,3004.7,0.001]
[1766358248738,1.4105,3005.7,3004.4,0.001]
[1766358248739,1.7562,3005.3,3004.4,0.001]
[1766358249236,3.34899559,3007.1,3004.7,6.65623854]
[1766358249237,1.7562,3005.8,3004.7,6.65623854]
[1766358249527,1.7562,3005.8,3005.5,0.001]
[1766358249528,2.1862,3005.8,3005.5,0.001]
[1766358249733,2.40482,3005.8,3004.8,0.2085]
[1766358250037,1.4105,3005.5,3004.4,0.001]
[1766358250333,1.7562,3005.5,3004.4,0.001]
[1766358250633,1.4105,3005.3,3004.4,6.6579032]
[1766358250833,1.7562,3005.3,3004.4,3.3294516]
[1766358251236,0.43,3005.4,3004.5,0.2095]
[1766358251899,1.4105,3005.5,3004.5,0.2095]